fUST/lending_fUST_20260223
["ID","MTS","AMOUNT","RATE_DAILY","PERIOD"]
[406367227,1771810247071,-51.23298804,0.00049393,2]
[406367232,1771810357862,-302.35236703,0.00024411,2]
[406367263,1771810655048,5000.0,0.000125,2]
[406367264,1771810676951,785.18831606,0.000125,2]
[406367300,1771810969874,302.35236703,0.00012,2]
[406367301,1771811026720,5000.0,0.00012,2]
[406367303,1771811064364,4697.64763297,0.00012,2]
[406367343,1771811231133,-302.35236703,0.00012,2]
[406367344,1771811231155,-150.0,0.00012127,2]
[406367345,1771811231173,-300.0,0.00012372,2]
[406367346,1771811231192,-595.0,0.00012374,2]
[406367347,1771811231210,-301.0,0.00012991,2]
[406367348,1771811231230,-506.6793722,0.00013273,2]
[406367349,1771811231253,-454.47856845,0.00013273,2]
[406367350,1771811247174,-311.3654465,0.0001314,2]
[406367353,1771811348072,-4688.6345535,0.0001314,2]
[406367354,1771811348093,-150.0,0.00013206,2]
[406367355,1771811348115,-500.0,0.00013273,2]
[406367356,1771811348134,-467.02433001,0.00013273,2]
[406367357,1771811348153,-302.53284083,0.00013673,2]
[406367358,1771811348172,-400.52339024,0.00013699,2]
[406367359,1771811348192,-554.28089787,0.00013821,2]
[406367360,1771811348212,-1200.0,0.00014021,2]
[406367361,1771811348232,-177.0,0.00015206,2]
[406367362,1771811348252,-300.0,0.00015421,2]
[406367363,1771811348271,-300.0,0.00015422,2]
[406367364,1771811348292,-538.43833829,0.00015423,2]
[406367368,1771811361138,-2428.06822135,0.00015269,2]
[406367369,1771811361160,-66.56166171,0.00015423,2]
[406367370,1771811361180,-211.94965465,0.00016011,2]
[406367371,1771811361198,-150.07290783,0.00016438,2]
[406367372,1771811361218,-57.26967263,0.0001687,2]
[406367373,1771811365091,-362.73032737,0.0001687,2]
[406367374,1771811365113,-204.0,0.00017206,2]
[406367375,1771811365134,-150.93030559,0.00017808,2]
[406367376,1771811365154,-587.0,0.00018456,2]
[406367377,1771811365176,-225.1962119,0.00019206,2]
[406367378,1771811365198,-823.0,0.0002019,2]
[406367379,1771811365217,-150.0,0.00021918,2]
[406367380,1771811365238,-808.455246,0.00022011,2]
[406367381,1771811365258,-528.0,0.00022087,2]
[406367382,1771811365277,-250.0,0.00022466,2]
[406367383,1771811365297,-350.0,0.00023014,2]
[406367384,1771811365316,-450.0,0.00023562,2]
[406367385,1771811365336,-550.0,0.0002411,2]
[406367386,1771811365356,-604.38162528,0.00024657,2]
[406367387,1771811365377,-500.97583976,0.00024657,2]
[406367388,1771811365397,-504.96033745,0.00024657,2]
[406367389,1771811365417,-150.0,0.00024658,2]
[406367390,1771811365437,-500.35278946,0.00024658,2]
[406367391,1771811406616,181.81,6.5e-05,2]
[406367392,1771811407372,181.81,6.6e-05,2]
[406367393,1771811408126,181.81,6.8e-05,2]
[406367394,1771811408721,181.81,6.9e-05,2]
[406367435,1771811432285,-145.95122218,0.00024658,2]
[406367436,1771811432295,-472.36491444,0.00025105,2]
[406367465,1771811438234,-2358.78656564,0.00025105,2]
[406367466,1771811438246,-2835.10242234,0.00025105,2]
[406367467,1771811438346,-654.39588636,0.00025105,2]
[406367468,1771811438361,-16922.90727736,0.00025105,2]
[406367526,1771811440633,-609.82875241,0.00025105,2]
[406367706,1771811443610,-48.66051486,0.00025105,2]
[406367707,1771811443623,-150.38390389,0.00025205,2]
[406367708,1771811443633,-699.65453078,0.0003,120]
[406367709,1771811443917,-1496.34546922,0.0003,120]
[406367710,1771811443927,-150.0,0.0003,2]
[406367711,1771811443936,-88.82748377,0.000305,2]
[406367712,1771811443949,-61.17251623,0.000305,2]
[406367713,1771811443959,-150.63,0.000311,2]
[406367714,1771811443968,-239.21837911,0.0003181,7]
[406367715,1771811443979,-150.42020231,0.000332,117]
[406367716,1771811443988,-239.21837911,0.00033426,7]
[406367717,1771811443997,-196.26018876,0.00035615,7]
[406367718,1771811444011,-263.08039467,0.00035615,7]
[406367719,1771811444022,-236.91960533,0.00035615,7]
[406367720,1771811444031,-500.0,0.00035615,7]
[406367721,1771811444040,-617.75962768,0.00035615,7]
[406367722,1771811444049,-343.8062027,0.00035615,7]
[406367723,1771811444060,-156.1937973,0.00035615,7]
[406367724,1771811444070,-500.0,0.00035615,7]
[406367725,1771811444079,-500.0,0.00035615,7]
[406367726,1771811444088,-585.55384081,0.00035615,7]
[406367727,1771811444098,-258.1454558,0.00035615,7]
[406367754,1771811446220,-241.8545442,0.00035615,7]
[406367755,1771811446230,-70.64545582,0.00035615,7]
[406367756,1771811446242,-429.35454418,0.00035615,7]
[406367757,1771811446252,-201.41321912,0.00035615,7]
[406367783,1771812070290,328.55843664,0.00013273,2]
[406367788,1771812127342,500.0,0.00013273,2]
[406367789,1771812127382,1000.0,0.00013821,2]
[406367790,1771812127435,1500.0,0.00014368,2]
[406367791,1771812127495,902.71852055,0.00014916,2]
[406367793,1771812146874,-328.55843664,0.00014767,2]
[406367806,1771812421161,208.55423417,1e-05,2]
[406367807,1771812437262,-300.0,0.00013139,2]
[406367808,1771812437370,-102.37928412,0.0001314,2]
[406367809,1771812445079,-207.0669715,0.0001314,2]
[406367810,1771812553171,-300.0,0.00012878,2]
[406367811,1771812553191,-249.63204791,0.00012879,2]
[406367812,1771812553210,-5000.0,0.00012879,2]
[406367813,1771812553229,-335.52787338,0.00013009,2]
[406367814,1771812553247,-337.64974545,0.00013273,2]
[406367815,1771812553267,-471.21012425,0.00013273,2]
[406367816,1771812553287,-500.0,0.00013699,2]
[406367817,1771812553305,-306.07502425,0.00013699,2]
[406367818,1771812553325,-300.0,0.00014246,2]
[406367819,1771812553345,-921.98099992,0.00014247,2]
[406367820,1771812553364,-82.09800235,0.00015603,2]
[406367821,1771812561194,-2549.34115854,0.00012749,2]
[406367822,1771812561214,-162.9803545,0.00015603,2]
[406367823,1771812574081,-174.92164315,0.00015603,2]
[406367824,1771812574102,-156.2171479,0.0001709,2]
[406367856,1771812632267,-5491.2322703,0.000246,2]
[406367858,1771812632277,-213.8375822,0.000246,4]
[406367860,1771812632287,-180.26624669,0.000247,2]
[406367862,1771812632296,-180.26624667,0.000247,2]
[406367863,1771812632306,-180.26624667,0.000247,2]
[406367864,1771812632315,-6414.76266128,0.000247,2]
[406367866,1771812632324,-1932.3823106,0.00026392,2]
[406367868,1771812632333,-165.85754082,0.00027168,5]
[406367870,1771812632343,-150.0,0.00027397,5]
[406367872,1771812632353,-250.0,0.00027945,5]
[406367874,1771812632363,-744.15762423,0.00028,3]
[406367876,1771812632373,-150.0,0.00028,5]
[406367878,1771812632384,-1453.9129657,0.00028366,2]
[406367880,1771812632393,-350.0,0.00028493,5]
[406367881,1771812632403,-258.86862087,0.00028548,5]
[406367882,1771812632417,-151.96541763,0.00029041,5]
[406367884,1771812632426,-534.2289106,0.00029291,30]
[406367886,1771812632435,-1932.3823106,0.00029524,2]
[406367888,1771812632445,-655.801947,0.00031794,2]
[406367890,1771812632454,-1932.3823106,0.00032657,2]
[406367892,1771812632464,-536.4865793,0.00033443,2]
[406367894,1771812632473,-744.00654836,0.00033668,2]
[406367896,1771812632483,-1156.93565988,0.00034797,2]
[406367915,1771812638467,-1443.38030388,0.00034797,2]
[406367916,1771812638479,-696.05269288,0.00034797,2]
[406368123,1771812643984,-712.44724343,0.00034797,2]
[406368124,1771812643993,-1417.78321042,0.00035,120]
[406368125,1771812644008,-1082.21678958,0.00035,120]
[406368126,1771812644019,-916.96534736,0.00035,120]
[406368127,1771812644035,-258.076,0.00035,120]
[406368149,1771812646414,-297.7342268,0.00035,120]
[406368150,1771812646426,-1076.22442584,0.00035,120]
[406368151,1771812646435,-500.0,0.00035616,2]
[406368152,1771812646444,-230.94817588,0.00035688,15]
[406368153,1771812646453,-544.61891956,0.00035786,2]
[406368154,1771812646462,-1932.3823106,0.00035789,2]
[406368155,1771812646472,-2500.0,0.00036,120]
[406368156,1771812646481,-2500.0,0.00037,120]
[406368157,1771812646491,-404.37,0.00038,60]
[406368158,1771812646500,-153.36044306,0.000399,2]
[406368159,1771812646510,-434.74,0.0003999,10]
[406368160,1771812646519,-829.03,0.0003999,10]
[406368161,1771812646528,-690.85,0.0003999,10]
[406368162,1771812646537,-517.27507838,0.00039999,2]
[406368163,1771812646547,-104518.0,0.0004,7]
[406368164,1771812646557,-744.15762423,0.0004,7]
[406368165,1771812646566,-3346.23,0.000411,14]
[406368166,1771812646575,-239.21837911,0.00043,7]
[406368167,1771812646585,-239.21837911,0.00043,7]
[406368168,1771812646594,-180.33390397,0.00043209,2]
[406368169,1771812646603,-164.95198548,0.00043908,2]
[406368170,1771812646612,-396.17032005,0.0004458,2]
[406368171,1771812646622,-153.36044304,0.00044596,2]
[406368172,1771812646632,-6477.37106169,0.00045479,120]
[406368173,1771812646786,-1038.41839642,0.00045479,120]
[406368233,1771813205460,153.32,6.5e-05,2]
[406368234,1771813205983,153.32,6.6e-05,2]
[406368235,1771813207144,153.32,6.8e-05,2]
[406368236,1771813207788,153.32,6.9e-05,2]
[406368237,1771813210287,500.0,0.00013273,2]
[406368238,1771813210336,1000.0,0.00013821,2]
[406368241,1771813331503,533.28749668,0.00013273,2]
[406368246,1771813549108,-156.87537468,0.00014256,2]
[406368279,1771813722906,524.21183987,0.0001,2]
[406368280,1771813746120,-2191.58353082,0.00014256,2]
[406368281,1771813746142,-201.32,0.000144,2]
[406368282,1771813746164,-351.05724749,0.00014423,2]
[406368283,1771813746187,-351.05724749,0.00014423,2]
[406368284,1771813746210,-351.40830474,0.00014423,2]
[406368285,1771813746234,-153.21841414,0.000157,2]
[406368286,1771813746253,-150.39441541,0.0002,2]
[406368287,1771813746274,-300.0,0.00023999,2]
[406368288,1771813746295,-96942.63758134,0.00024,7]
[406368289,1771813746320,-7149.07909951,0.00025,15]
[406368290,1771813749098,-3670.38019892,0.00025,15]
[406368291,1771813749122,-311.0,0.00026026,2]
[406368292,1771813749148,-2068.21632978,0.0003,30]
[406368293,1771813772093,-13262.69967552,0.0003,30]
[406368294,1771813772113,-3084.08425988,0.00033,120]
[406368295,1771813772146,-150.42020231,0.000332,117]
[406368296,1771813772168,-224.22432065,0.00033647,120]
[406368297,1771813772187,-150.0,0.000349,2]
[406368298,1771813772206,-270.43785958,0.00035,120]
[406368299,1771813772225,-1336.91320591,0.00035,20]
[406368300,1771813772244,-735.87276131,0.00035,120]
[406368301,1771813772264,-150.0,0.000354,2]
[406368302,1771813772284,-150.0,0.00036,2]
[406368303,1771813772304,-151.60308654,0.00036999,120]
[406368304,1771813772328,-363.93,0.00038,60]
[406368305,1771813772348,-394.1482081,0.00038402,2]
[406368306,1771813772369,-1366.75306325,0.000385,45]
[406368307,1771813774086,-33.29693675,0.000385,45]
[406368308,1771813774106,-1817.16207145,0.00039999,2]
[406368636,1771813838784,-1563.45824704,0.00039999,2]
[406368638,1771813838796,-556.81456654,0.00039999,2]
[406368640,1771813838806,-184.12851264,0.0004,120]
[406368642,1771813838815,-185.63739647,0.0004,30]
[406368644,1771813838824,-160.23657243,0.0004,30]
[406368646,1771813838833,-209.15612146,0.0004,120]
[406368648,1771813838843,-242.67,0.0004,30]
[406368650,1771813838853,-211.8,0.0004,2]
[406368652,1771813838863,-206.09589026,0.00040143,2]
[406368654,1771813838872,-1810.73281075,0.00040444,2]
[406368798,1771813843892,-263.26549415,0.00040444,2]
[406368799,1771813843902,-452.76608005,0.00042256,2]
[406368800,1771813843911,-159.0,0.00043,90]
[406368801,1771813843921,-394.1482081,0.00043116,2]
[406368802,1771813843931,-156.38468801,0.00043836,16]
[406368803,1771813843982,-345.71650873,0.00043836,16]
[406368804,1771813843992,-688.0,0.00044596,14]
[406368805,1771813844001,-688.0,0.00044596,14]
[406368806,1771813844011,-688.0,0.00044596,14]
[406368807,1771813844020,-688.0,0.00044596,14]
[406368808,1771813844030,-688.0,0.00044596,14]
[406368809,1771813844039,-688.0,0.00044596,14]
[406368810,1771813844048,-688.0,0.00044596,14]
[406368811,1771813844058,-643.27203442,0.00044596,14]
[406368812,1771813844067,-2000.0,0.00045478,120]
[406368813,1771813844077,-1470.09951792,0.00045478,120]
[406368814,1771813844086,-160.97804285,0.00045692,5]
[406368815,1771813844096,-181.97,0.00045717,60]
[406368816,1771813844105,-322.02482852,0.0004579,2]
[406368817,1771813844114,-407.57832138,0.000462,120]
[406368818,1771813844123,-303.96526755,0.00046607,17]
[406368819,1771813844134,-225.50672556,0.00047691,120]
[406368820,1771813844143,-655.801947,0.00047691,2]
[406368821,1771813844152,-394.1482081,0.0004783,2]
[406368822,1771813844161,-500.0,0.00047886,15]
[406368823,1771813844171,-500.0,0.00047886,31]
[406368824,1771813844181,-477.68426088,0.00047886,7]
[406368825,1771813844192,-22.31573912,0.00047886,7]
[406368826,1771813844202,-500.0,0.00047886,7]
[406368827,1771813844211,-176.76647479,0.00047886,120]
[406368832,1771813846547,-323.23352521,0.00047886,120]
[406368833,1771813846557,-500.0,0.00047886,15]
[406368834,1771813846566,-500.0,0.00047886,120]
[406368835,1771813846576,-500.0,0.00047886,7]
[406368836,1771813846585,-500.0,0.00047886,120]
[406368837,1771813846598,-178.04983262,0.00047886,15]
[406368838,1771813846777,-17.43059719,0.00047886,15]
[406368860,1771813957504,-1038.41839642,0.00024703,120]
[406368866,1771814834112,-300.0,0.00014779,2]
[406368867,1771814834133,-150.0,0.0001478,2]
[406368868,1771814834153,-2040.90751198,0.0001478,2]
[406368869,1771814844092,-431.26360837,0.0001478,2]
[406368870,1771814845114,-2527.82887965,0.0001478,2]
[406368871,1771814845134,-201.32,0.000148,2]
[406368872,1771814845154,-1200.0,0.00014928,2]
[406368873,1771814845174,-300.0,0.00014928,2]
[406368874,1771814845195,-5000.0,0.00014929,2]
[406368875,1771814845217,-300.0,0.00015079,2]
[406368876,1771814845239,-300.0,0.00015079,2]
[406368877,1771814845259,-153.21841414,0.000157,2]
[406368878,1771814845281,-500.0,0.00015752,2]
[406368879,1771814845301,-188.82598743,0.00015752,2]
[406368880,1771814845322,-500.0,0.00015752,2]
[406368881,1771814845342,-500.0,0.00015752,2]
[406368882,1771814845363,-500.0,0.00015752,2]
[406368883,1771814845384,-500.0,0.00015752,2]
[406368884,1771814845404,-500.0,0.00015752,2]
[406368885,1771814845424,-500.0,0.00015752,2]
[406368886,1771814845565,-500.0,0.00015752,2]
[406368887,1771814845588,-500.0,0.00015752,2]
[406368888,1771814845615,-500.0,0.00015752,2]
[406368889,1771814845638,-500.0,0.00015752,2]
[406368890,1771814845660,-500.0,0.00015752,2]
[406368891,1771814845683,-341.20739835,0.00015752,2]
[406368892,1771814845704,-500.0,0.00015752,2]
[406368893,1771814845727,-500.0,0.00015752,2]
[406368894,1771814845748,-500.0,0.00015752,2]
[406368895,1771814845767,-500.0,0.00015752,2]
[406368896,1771814845786,-500.0,0.00015752,2]
[406368897,1771814845805,-500.0,0.00015752,2]
[406368898,1771814845824,-500.0,0.00015752,2]
[406368899,1771814845843,-500.0,0.00015752,2]
[406368900,1771814845862,-500.0,0.00015752,2]
[406368901,1771814845880,-500.0,0.00015752,2]
[406368902,1771814845898,-500.0,0.00015752,2]
[406368903,1771814845914,-500.0,0.00015752,2]
[406368904,1771814845931,-500.0,0.00015752,2]
[406368905,1771814845950,-500.0,0.00015752,2]
[406368906,1771814845983,-500.0,0.00015752,2]
[406368907,1771814846008,-500.0,0.00015752,2]
[406368908,1771814846031,-500.0,0.00015752,2]
[406368909,1771814846055,-500.0,0.00015752,2]
[406368910,1771814846077,-500.0,0.00015752,2]
[406368911,1771814846099,-500.0,0.00015752,2]
[406368912,1771814846120,-500.0,0.00015752,2]
[406368913,1771814846143,-500.0,0.00015752,2]
[406368914,1771814846164,-500.0,0.00015752,2]
[406368915,1771814846186,-500.0,0.00015752,2]
[406368916,1771814846209,-500.0,0.00015752,2]
[406368917,1771814846232,-500.0,0.00015752,2]
[406368918,1771814846255,-500.0,0.00015752,2]
[406368919,1771814846278,-500.0,0.00015752,2]
[406368920,1771814846302,-500.0,0.00015752,2]
[406368921,1771814846324,-399.30198823,0.00015752,2]
[406368922,1771814846346,-500.0,0.00015752,2]
[406368923,1771814846369,-500.0,0.00015752,2]
[406368924,1771814846392,-500.0,0.00015752,2]
[406368925,1771814846416,-500.0,0.00015752,2]
[406368926,1771814846436,-500.0,0.00015752,2]
[406368927,1771814846459,-500.0,0.00015752,2]
[406368928,1771814846480,-500.0,0.00015752,2]
[406368929,1771814846503,-363.51982731,0.00015752,2]
[406368930,1771814846524,-500.0,0.00015752,2]
[406368931,1771814846545,-365.82136207,0.00015752,2]
[406368932,1771814846567,-500.0,0.00015752,2]
[406368933,1771814846588,-500.0,0.00015752,2]
[406368934,1771814846612,-500.0,0.00015752,2]
[406368935,1771814846633,-500.0,0.00015752,2]
[406368936,1771814846656,-500.0,0.00015752,2]
[406368937,1771814846682,-500.0,0.00015752,2]
[406368938,1771814846704,-500.0,0.00015752,2]
[406368939,1771814846725,-500.0,0.00015752,2]
[406368940,1771814846747,-500.0,0.00015752,2]
[406368941,1771814846769,-500.0,0.00015752,2]
[406368942,1771814846790,-500.0,0.00015752,2]
[406368943,1771814846811,-500.0,0.00015752,2]
[406368944,1771814846832,-500.0,0.00015752,2]
[406368945,1771814846854,-500.0,0.00015752,2]
[406368946,1771814846875,-500.0,0.00015752,2]
[406368947,1771814846899,-499.99999999,0.00015752,2]
[406368948,1771814846919,-351.05724749,0.00015755,2]
[406368949,1771814846944,-351.05724749,0.00015755,2]
[406368950,1771814846963,-351.40830474,0.00015755,2]
[406368951,1771814846984,-420.0,0.00016339,2]
[406368952,1771814847004,-311.06983409,0.00024657,2]
[406368953,1771814847026,-500.0,0.00024658,2]
[406368954,1771814847046,-500.0,0.00024658,2]
[406368955,1771814847068,-500.0,0.00024658,2]
[406368956,1771814847090,-500.0,0.00024658,2]
[406368957,1771814847111,-500.0,0.00024658,2]
[406368958,1771814847131,-500.0,0.00024658,2]
[406368959,1771814847153,-500.0,0.00024658,2]
[406368960,1771814847174,-500.0,0.00024658,2]
[406368961,1771814847195,-500.0,0.00024658,2]
[406368962,1771814847217,-500.0,0.00024658,2]
[406368963,1771814847239,-500.0,0.00024658,2]
[406368964,1771814847260,-500.0,0.00024658,2]
[406368965,1771814847282,-500.0,0.00024658,2]
[406368966,1771814847302,-500.0,0.00024658,2]
[406368967,1771814847323,-500.0,0.00024658,2]
[406368968,1771814847343,-500.0,0.00024658,2]
[406368969,1771814847367,-500.0,0.00024658,2]
[406368970,1771814847388,-500.0,0.00024658,2]
[406368971,1771814847409,-500.0,0.00024658,2]
[406368972,1771814847430,-500.0,0.00024658,2]
[406368973,1771814847453,-500.0,0.00024658,2]
[406368974,1771814847474,-500.0,0.00024658,2]
[406368975,1771814847495,-500.0,0.00024658,2]
[406368976,1771814847517,-500.0,0.00024658,2]
[406368977,1771814847538,-500.0,0.00024658,2]
[406368978,1771814847559,-500.0,0.00024658,2]
[406368979,1771814847581,-500.0,0.00024658,2]
[406368980,1771814847609,-500.0,0.00024658,2]
[406368981,1771814847631,-500.0,0.00024658,2]
[406368982,1771814847654,-500.0,0.00024658,2]
[406368983,1771814847675,-500.0,0.00024658,2]
[406368984,1771814847704,-500.0,0.00024658,2]
[406368985,1771814847724,-500.0,0.00024658,2]
[406368986,1771814847746,-500.0,0.00024658,2]
[406368987,1771814847768,-500.0,0.00024658,2]
[406368988,1771814847789,-500.0,0.00024658,2]
[406368989,1771814847810,-500.0,0.00024658,2]
[406368990,1771814847831,-500.0,0.00024658,2]
[406368991,1771814847852,-500.0,0.00024658,2]
[406368992,1771814847872,-500.0,0.00024658,2]
[406368993,1771814847893,-500.0,0.00024658,2]
[406368994,1771814847916,-500.0,0.00024658,2]
[406368995,1771814847939,-197.68536632,0.00024658,2]
[406368996,1771814847962,-500.0,0.00024658,2]
[406368997,1771814847983,-500.0,0.00024658,2]
[406368998,1771814848003,-500.0,0.00024658,2]
[406368999,1771814848024,-500.0,0.00024658,2]
[406369000,1771814848045,-500.0,0.00024658,2]
[406369001,1771814848064,-500.0,0.00024658,2]
[406369002,1771814848085,-500.0,0.00024658,2]
[406369003,1771814848196,-500.0,0.00024658,2]
[406369004,1771814848219,-500.0,0.00024658,2]
[406369005,1771814848240,-500.0,0.00024658,2]
[406369006,1771814848260,-500.0,0.00024658,2]
[406369007,1771814848281,-500.0,0.00024658,2]
[406369008,1771814848304,-500.0,0.00024658,2]
[406369009,1771814848325,-500.0,0.00024658,2]
[406369010,1771814848347,-400.0,0.00024658,2]
[406369011,1771814848369,-500.0,0.00024658,2]
[406369012,1771814848390,-744.15762423,0.00031281,2]
[406369013,1771814848412,-150.42020231,0.000332,117]
[406369014,1771814848432,-3417.0,0.00035,120]
[406369015,1771814848453,-500.0,0.00035616,2]
[406369016,1771814848473,-164.9537133,0.00036553,2]
[406369017,1771814848493,-156.424108,0.00036653,30]
[406369018,1771814848512,-309.35,0.00038,60]
[406369019,1771814848533,-500.0,0.00038355,2]
[406369020,1771814848553,-166.659725,0.00038356,120]
[406369021,1771814848574,-166.659725,0.00038356,120]
[406369022,1771814848594,-166.659725,0.00038356,120]
[406369023,1771814848620,-166.659725,0.00038356,120]
[406369024,1771814848641,-166.659725,0.00038356,120]
[406369025,1771814848661,-166.659725,0.00038356,120]
[406369026,1771814848681,-166.659725,0.00038356,120]
[406369027,1771814848700,-166.659725,0.00038356,120]
[406369028,1771814848720,-707.44700008,0.0003926,2]
[406369029,1771814848740,-3339.66,0.000414,14]
[406369030,1771814848759,-214.81946011,0.0004164,2]
[406369031,1771814848778,-471.9306375,0.0004164,2]
[406369032,1771814848796,-2362.88303582,0.00045469,3]
[406369033,1771814848816,-166.659725,0.00045479,120]
[406369034,1771814848836,-166.659725,0.00045479,120]
[406369035,1771814848856,-166.659725,0.00045479,120]
[406369036,1771814848875,-166.659725,0.00045479,120]
[406369037,1771814848895,-2817.40187674,0.00045479,120]
[406369038,1771814852117,-400.24444855,0.00014632,2]
[406369039,1771814952075,-2149.96266973,0.00014486,2]
[406369040,1771814952095,-3312.27976218,0.00014632,2]
[406369041,1771814953092,-235.69468493,0.00014632,2]
[406369042,1771814953113,-300.0,0.00024657,2]
[406369043,1771814953133,-736.47271507,0.00024658,2]
[406369044,1771814955085,-20485.48657825,0.00024658,2]
[406369045,1771814955106,-420.0,0.00026721,2]
[406369046,1771814955126,-587.0,0.00028958,2]
[406369047,1771814955146,-744.15762423,0.0003126,2]
[406369048,1771814955166,-750.0,0.00031382,2]
[406369049,1771814955187,-394.1482081,0.00034051,2]
[406369121,1771815031782,-3683.7764046,0.00045378,28]
[406369124,1771815031792,-154.67,0.00045717,60]
[406369127,1771815031801,-151.0,0.00046923,120]
[406369130,1771815031810,-500.0,0.00046923,2]
[406369133,1771815031820,-13395.40965941,0.00046923,2]
[406369136,1771815031831,-1792.70804059,0.00046923,2]
[406369139,1771815031840,-500.0,0.00046999,2]
[406369142,1771815031851,-1000.0,0.00047,30]
[406369145,1771815031860,-506.12330479,0.00047,30]
[406369202,1771815037969,-44.47160539,0.00047,30]
[406369207,1771815040041,-449.40508982,0.00047,30]
[406369208,1771815040050,-159.3907235,0.00047,30]
[406369209,1771815041447,-840.6092765,0.00047,30]
[406369210,1771815041457,-1000.0,0.00047,30]
[406369211,1771815041466,-1000.0,0.00047,30]
[406369212,1771815041476,-1000.0,0.00047,30]
[406369213,1771815041485,-1000.0,0.00047,30]
[406369214,1771815041494,-1000.0,0.00047,30]
[406369215,1771815041503,-1000.0,0.00047,30]
[406369216,1771815041513,-3479.35585854,0.00047,120]
[406369217,1771815041524,-702.03788407,0.00047,120]
[406369226,1771815042939,-1170.75,0.00047,120]
[406369227,1771815042951,-513.17087944,0.00047,120]
[406369228,1771815042991,-1799.99168877,0.00047,120]
[406369240,1771815045734,-4013.11746484,0.00047,120]
[406369241,1771815045743,-382.78426643,0.0004744,2]
[406369242,1771815045753,-1786.38241812,0.0004776,120]
[406369243,1771815045789,-6480.89611764,0.0004776,120]
[406369244,1771815045800,-359.0,0.0004776,120]
[406369245,1771815045897,-1332.72146424,0.0004776,120]
[406369246,1771815045907,-151.0,0.0004776,120]
[406369247,1771815045916,-281.0,0.000478,27]
[406369248,1771815045926,-3005.7,0.000478,14]
[406369249,1771815045936,-207.16252778,0.00047911,2]
[406369250,1771815045945,-500.0,0.00047989,2]
[406369251,1771815045955,-500.0,0.00047999,2]
[406369252,1771815045965,-9978.97,0.00047999,120]
[406369253,1771815046049,-7552.91555969,0.00048,120]
[406369254,1771815051058,604.38162528,0.00024657,16]
[406369256,1771815053720,1030.15303465,0.00024953,120]
[406369257,1771815053742,1111.76438198,0.00024953,120]
[406369258,1771815063289,1000.90981802,0.00024953,120]
[406369260,1771815183595,506.37229237,0.00013273,2]
[406369263,1771815190211,447.01522812,0.00013273,2]
[406369264,1771815191058,500.0,0.00013273,2]
[406369265,1771815191119,220.33220375,0.00013821,2]
[406369266,1771815192489,500.0,0.00013699,2]
[406369267,1771815194994,502.12321363,0.00013699,2]
[406369268,1771815199489,500.0,0.00013699,2]
[406369272,1771815269372,3653.37772558,0.00014,2]
[406369273,1771815408272,151.03,0.000135,2]
[406369274,1771815409287,151.03,0.00013,2]
[406369275,1771815464906,1811.50015963,0.000135,2]
[406369276,1771815662286,-300.0,0.00013698,2]
[406369277,1771815662323,-615.0,0.00013698,2]
[406369278,1771815662387,-766.31763818,0.00013698,2]
[406369279,1771815663272,500.0,0.00013273,2]
[406369280,1771815663311,156.44244972,0.00013273,2]
[406369281,1771815676953,184.7,7.304e-05,30]
[406369282,1771815677307,369.4,8.086e-05,30]
[406369283,1771815677668,554.11,8.869e-05,30]
[406369284,1771815678070,738.81,9.651e-05,30]
[406369285,1771815678353,923.51,0.00010434,30]